fUSD/lending_fUSD_20250530
["ID","MTS","AMOUNT","RATE_DAILY","PERIOD"]
[363170005,1748607057472,-420.0,0.00022739,2]
[363170006,1748607057483,-420.0,0.00022739,2]
[363170007,1748607057492,-431.78,0.00022739,2]
[363170008,1748607057503,-489.86,0.00022739,2]
[363170009,1748607057513,-420.0,0.00022739,2]
[363170010,1748607057523,-420.0,0.00022739,2]
[363170011,1748607057534,-1096.19,0.00022739,2]
[363170012,1748607057544,-420.0,0.00022739,2]
[363170013,1748607057554,-420.0,0.00022739,2]
[363170014,1748607057563,-505.65,0.00022739,2]
[363170015,1748607057574,-899.73,0.00022739,2]
[363170016,1748607057584,-420.0,0.00022739,2]
[363170017,1748607057593,-711.78,0.00022739,2]
[363170018,1748607057603,-420.0,0.00022739,2]
[363170019,1748607057614,-1058.99,0.00022739,2]
[363170020,1748607057624,-420.0,0.00022739,2]
[363170021,1748607057634,-420.0,0.00022739,2]
[363170022,1748607057644,-881.85,0.00022739,2]
[363170023,1748607057657,-420.0,0.00022739,2]
[363170024,1748607057668,-420.0,0.00022739,2]
[363170025,1748607057678,-420.0,0.00022739,2]
[363170026,1748607057687,-420.0,0.00022739,2]
[363170027,1748607057696,-501.47,0.00022739,2]
[363170028,1748607057707,-420.0,0.00022739,2]
[363170029,1748607057716,-897.81,0.00022739,2]
[363170030,1748607057725,-424.07,0.00022739,2]
[363170031,1748607057734,-420.0,0.00022739,2]
[363170032,1748607057745,-420.0,0.00022739,2]
[363170033,1748607057754,-475.28,0.00022739,2]
[363170034,1748607057764,-543.28,0.00022739,2]
[363170035,1748607057774,-840.36,0.00022739,2]
[363170036,1748607057783,-420.0,0.00022739,2]
[363170037,1748607057792,-900.0,0.00022739,2]
[363170038,1748607057801,-420.0,0.00022739,2]
[363170039,1748607057811,-420.0,0.00022739,2]
[363170040,1748607057820,-420.0,0.00022739,2]
[363170041,1748607057829,-420.0,0.00022739,2]
[363170042,1748607057839,-1281.34,0.00022739,2]
[363170043,1748607057849,-420.0,0.00022739,2]
[363170044,1748607057858,-420.0,0.00022739,2]
[363170045,1748607057869,-420.0,0.00022739,2]
[363170046,1748607057879,-420.0,0.00022739,2]
[363170047,1748607057889,-1366.54,0.00022739,2]
[363170048,1748607057899,-617.92,0.00022739,2]
[363170049,1748607057909,-420.0,0.00022739,2]
[363170050,1748607057921,-420.0,0.00022739,2]
[363170051,1748607057931,-420.0,0.00022739,2]
[363170052,1748607057941,-420.0,0.00022739,2]
[363170053,1748607057951,-420.0,0.00022739,2]
[363170054,1748607057961,-496.86,0.00022739,2]
[363170055,1748607057971,-597.58,0.00022739,2]
[363170056,1748607057981,-591.81,0.00022739,2]
[363170057,1748607057991,-420.0,0.00022739,2]
[363170058,1748607058001,-420.0,0.00022739,2]
[363170059,1748607058011,-420.0,0.00022739,2]
[363170060,1748607058022,-471.86,0.00022739,2]
[363170061,1748607058032,-661.02,0.00022739,2]
[363170062,1748607058042,-454.59,0.00022739,2]
[363170063,1748607058053,-420.0,0.00022739,2]
[363170064,1748607058062,-420.0,0.00022739,2]
[363170065,1748607058072,-420.0,0.00022739,2]
[363170066,1748607058083,-499.07,0.00022739,2]
[363170067,1748607058093,-670.85,0.00022739,2]
[363170068,1748607058102,-420.0,0.00022739,2]
[363170069,1748607058112,-719.24,0.00022739,2]
[363170070,1748607058121,-420.0,0.00022739,2]
[363170071,1748607058131,-420.0,0.00022739,2]
[363170072,1748607058141,-420.0,0.00022739,2]
[363170073,1748607058151,-461.58,0.00022739,2]
[363170074,1748607058161,-420.0,0.00022739,2]
[363170075,1748607058172,-722.7,0.00022739,2]
[363170076,1748607058182,-420.0,0.00022739,2]
[363170077,1748607058192,-734.25,0.00022739,2]
[363170078,1748607058202,-420.0,0.00022739,2]
[363170079,1748607058212,-635.18,0.00022739,2]
[363170080,1748607058222,-420.0,0.00022739,2]
[363170081,1748607058232,-420.0,0.00022739,2]
[363170082,1748607058242,-420.0,0.00022739,2]
[363170083,1748607058252,-554.74,0.00022739,2]
[363170084,1748607058262,-420.0,0.00022739,2]
[363170085,1748607058272,-420.0,0.00022739,2]
[363170086,1748607058282,-611.52,0.00022739,2]
[363170087,1748607058292,-507.05536986,0.00022739,2]
[363170088,1748607058302,-462.71,0.00022739,2]
[363170089,1748607058311,-420.0,0.00022739,2]
[363170090,1748607058322,-420.0,0.00022739,2]
[363170091,1748607058332,-420.0,0.00022739,2]
[363170092,1748607058343,-420.0,0.00022739,2]
[363170093,1748607058352,-1188.93,0.00022739,2]
[363170094,1748607058362,-420.0,0.00022739,2]
[363170095,1748607058372,-891.62,0.00022739,2]
[363170096,1748607058381,-605.19,0.00022739,2]
[363170097,1748607058391,-542.57,0.00022739,2]
[363170098,1748607058401,-806.97,0.00022739,2]
[363170099,1748607058411,-915.09,0.00022739,2]
[363170100,1748607058424,-420.0,0.00022739,2]
[363170101,1748607058434,-420.0,0.00022739,2]
[363170102,1748607058444,-420.0,0.00022739,2]
[363170103,1748607058453,-561.74,0.00022739,2]
[363170104,1748607058463,-420.0,0.00022739,2]
[363170105,1748607058473,-420.0,0.00022739,2]
[363170106,1748607058483,-830.32,0.00022739,2]
[363170107,1748607058494,-420.0,0.00022739,2]
[363170108,1748607058504,-420.0,0.00022739,2]
[363170109,1748607058514,-490.85,0.00022739,2]
[363170110,1748607058524,-420.0,0.00022739,2]
[363170111,1748607058534,-420.0,0.00022739,2]
[363170112,1748607058544,-420.0,0.00022739,2]
[363170113,1748607058554,-1423.64,0.00022739,2]
[363170114,1748607058564,-420.0,0.00022739,2]
[363170115,1748607058574,-555.69,0.00022739,2]
[363170116,1748607058584,-420.0,0.00022739,2]
[363170117,1748607058595,-1024.44,0.00022739,2]
[363170118,1748607058606,-1024.4,0.00022739,2]
[363170119,1748607058616,-828.95,0.00022739,2]
[363170120,1748607058626,-666.43,0.00022739,2]
[363170121,1748607058636,-420.0,0.00022739,2]
[363170122,1748607058646,-843.71,0.00022739,2]
[363170123,1748607058658,-86926.41,0.00022739,2]
[363170124,1748607058671,-705.97,0.00022739,2]
[363170125,1748607058681,-420.0,0.00022739,2]
[363170126,1748607058691,-420.0,0.00022739,2]
[363170127,1748607058702,-420.0,0.00022739,2]
[363170128,1748607058712,-1845.55,0.00022739,2]
[363170129,1748607058723,-444.53,0.00022739,2]
[363170130,1748607058733,-476.13,0.00022739,2]
[363170131,1748607058743,-2157.65,0.00022739,2]
[363170132,1748607058754,-822.98,0.00022739,2]
[363170133,1748607058765,-420.0,0.00022739,2]
[363170134,1748607058775,-1603.7,0.00022739,2]
[363170135,1748607058785,-447.93,0.00022739,2]
[363170136,1748607058795,-420.0,0.00022739,2]
[363170137,1748607058805,-980.59,0.00022739,2]
[363170138,1748607058815,-420.0,0.00022739,2]
[363170139,1748607058826,-1723.19,0.00022739,2]
[363170140,1748607058836,-983.82,0.00022739,2]
[363170141,1748607058846,-511.09,0.00022739,2]
[363170142,1748607058856,-420.0,0.00022739,2]
[363170143,1748607058866,-420.0,0.00022739,2]
[363170144,1748607058876,-1122.49,0.00022739,2]
[363170145,1748607058886,-420.0,0.00022739,2]
[363170146,1748607058896,-2217.7,0.00022739,2]
[363170147,1748607058907,-420.0,0.00022739,2]
[363170148,1748607058918,-1063.81,0.00022739,2]
[363170149,1748607058928,-6717.82,0.00022739,2]
[363170150,1748607058938,-691.37,0.00022739,2]
[363170151,1748607058948,-1317.38,0.00022739,2]
[363170152,1748607058958,-1372.57,0.00022739,2]
[363170153,1748607058968,-420.0,0.00022739,2]
[363170154,1748607058978,-7535.87,0.00022739,2]
[363170155,1748607058989,-2685.86,0.00022739,2]
[363170156,1748607059000,-2380.77,0.00022739,2]
[363170157,1748607059010,-420.0,0.00022739,2]
[363170158,1748607059021,-2507.78,0.00022739,2]
[363170159,1748607059031,-649.68,0.00022739,2]
[363170160,1748607059042,-5187.95,0.00022739,2]
[363170161,1748607059052,-2012.28,0.00022739,2]
[363170162,1748607059062,-689.56,0.00022739,2]
[363170163,1748607059072,-927.66,0.00022739,2]
[363170164,1748607059083,-658.91,0.00022739,2]
[363170165,1748607059092,-3885.76,0.00022739,2]
[363170166,1748607059103,-603.91,0.00022739,2]
[363170167,1748607059113,-911.24,0.00022739,2]
[363170168,1748607059123,-6681.81,0.00022739,2]
[363170169,1748607059134,-932.04,0.00022739,2]
[363170170,1748607059144,-492.89,0.00022739,2]
[363170171,1748607059155,-646.35,0.00022739,2]
[363170172,1748607059167,-1220.31,0.00022739,2]
[363170173,1748607059177,-939.98,0.00022739,2]
[363170174,1748607059188,-420.0,0.00022739,2]
[363170175,1748607059461,-420.0,0.00022739,2]
[363170176,1748607059472,-1108.35,0.00022739,2]
[363170177,1748607059482,-3430.82,0.00022739,2]
[363170178,1748607059491,-420.0,0.00022739,2]
[363170179,1748607059501,-9207.29,0.00022739,2]
[363170180,1748607059511,-420.0,0.00022739,2]
[363170181,1748607059521,-2205.41,0.00022739,2]
[363170182,1748607059531,-575.48,0.00022739,2]
[363170183,1748607059541,-887.03,0.00022739,2]
[363170184,1748607059551,-420.0,0.00022739,2]
[363170185,1748607059561,-420.0,0.00022739,2]
[363170186,1748607059571,-7187.75,0.00022739,2]
[363170187,1748607059581,-420.0,0.00022739,2]
[363170188,1748607059591,-737.14,0.00022739,2]
[363170189,1748607059601,-586.97,0.00022739,2]
[363170190,1748607059611,-229.3,0.00022739,2]
[363170191,1748607059620,-720.56,0.00022739,2]
[363170192,1748607059630,-481.84,0.00022739,2]
[363170193,1748607059639,-420.0,0.00022739,2]
[363170194,1748607059649,-1809.99,0.00022739,2]
[363170195,1748607059662,-480.85,0.00022739,2]
[363170196,1748607059673,-2301.8,0.00022739,2]
[363170197,1748607059682,-1126.66,0.00022739,2]
[363170198,1748607059692,-420.0,0.00022739,2]
[363170199,1748607059703,-1133.39,0.00022739,2]
[363170200,1748607059713,-1016.52,0.00022739,2]
[363170201,1748607059722,-420.0,0.00022739,2]
[363170202,1748607059734,-7056.8,0.00022739,2]
[363170203,1748607059745,-2797.49,0.00022739,2]
[363170204,1748607059755,-641.25,0.00022739,2]
[363170205,1748607059765,-568.14,0.00022739,2]
[363170206,1748607059775,-761.33,0.00022739,2]
[363170207,1748607059784,-420.0,0.00022739,2]
[363170208,1748607059794,-482.24,0.00022739,2]
[363170209,1748607059804,-420.0,0.00022739,2]
[363170210,1748607059813,-420.0,0.00022739,2]
[363170211,1748607059823,-458.08,0.00022739,2]
[363170212,1748607059833,-1729.68,0.00022739,2]
[363170213,1748607059842,-804.22,0.00022739,2]
[363170214,1748607059852,-420.0,0.00022739,2]
[363170215,1748607059865,-981.01,0.00022739,2]
[363170216,1748607059875,-665.18,0.00022739,2]
[363170217,1748607059884,-1614.28,0.00022739,2]
[363170218,1748607059894,-983.07,0.00022739,2]
[363170219,1748607059903,-813.82,0.00022739,2]
[363170220,1748607059913,-873.87,0.00022739,2]
[363170221,1748607059924,-4813.38,0.00022739,2]
[363170222,1748607059933,-1632.65,0.00022739,2]
[363170223,1748607059943,-472.8,0.00022739,2]
[363170224,1748607059953,-420.0,0.00022739,2]
[363170225,1748607059963,-5108.33,0.00022739,2]
[363170226,1748607059973,-457.6,0.00022739,2]
[363170227,1748607059982,-2974.9,0.00022739,2]
[363170228,1748607059991,-613.72,0.00022739,2]
[363170229,1748607060001,-420.0,0.00022739,2]
[363170230,1748607060011,-1922.14,0.00022739,2]
[363170231,1748607060020,-778.71,0.00022739,2]
[363170232,1748607060030,-2797.81,0.00022739,2]
[363170233,1748607060039,-892.25,0.00022739,2]
[363170234,1748607060050,-705.71,0.00022739,2]
[363170235,1748607060060,-1674.65,0.00022739,2]
[363170236,1748607060070,-1389.57,0.00022739,2]
[363170237,1748607060079,-684.93,0.00022739,2]
[363170238,1748607060089,-1255.87,0.00022739,2]
[363170239,1748607060099,-2470.47,0.00022739,2]
[363170240,1748607060109,-420.0,0.00022739,2]
[363170241,1748607060119,-420.0,0.00022739,2]
[363170242,1748607060129,-1338.59,0.00022739,2]
[363170243,1748607060138,-1182.57,0.00022739,2]
[363170244,1748607060148,-556.75,0.00022739,2]
[363170245,1748607060158,-420.0,0.00022739,2]
[363170246,1748607060170,-2489.28,0.00022739,2]
[363170247,1748607060180,-420.0,0.00022739,2]
[363170248,1748607060190,-490.55,0.00022739,2]
[363170249,1748607060200,-2169.61,0.00022739,2]
[363170250,1748607060210,-718.83,0.00022739,2]
[363170251,1748607060220,-420.0,0.00022739,2]
[363170252,1748607060230,-327.00893168,0.00022739,2]
[363170253,1748607060241,-921.22,0.00022739,2]
[363170254,1748607060251,-2061.41,0.00022739,2]
[363170255,1748607060260,-420.0,0.00022739,2]
[363170256,1748607060270,-162.7594629,0.00022739,2]
[363170257,1748607060280,-3184.52,0.00022739,2]
[363170258,1748607060290,-789.16,0.00022739,2]
[363170259,1748607060302,-423.48,0.00022739,2]
[363170260,1748607060312,-420.0,0.00022739,2]
[363170261,1748607060322,-2835.89,0.00022739,2]
[363170262,1748607060332,-420.0,0.00022739,2]
[363170263,1748607060341,-567.0,0.00022739,2]
[363170264,1748607060351,-1177.33,0.00022739,2]
[363170265,1748607060360,-2667.69,0.00022739,2]
[363170266,1748607060370,-420.0,0.00022739,2]
[363170267,1748607060379,-2466.9,0.00022739,2]
[363170268,1748607060389,-1946.37,0.00022739,2]
[363170269,1748607060399,-648.5,0.00022739,2]
[363170270,1748607060409,-1659.75,0.00022739,2]
[363170271,1748607060422,-678.29,0.00022739,2]
[363170272,1748607060432,-524.41,0.00022739,2]
[363170273,1748607060441,-733.52,0.00022739,2]
[363170274,1748607060451,-1782.45,0.00022739,2]
[363170275,1748607060460,-1513.35,0.00022739,2]
[363170276,1748607060470,-747.44,0.00022739,2]
[363170277,1748607060479,-445.41,0.00022739,2]
[363170278,1748607060489,-420.0,0.00022739,2]
[363170279,1748607060499,-693.81,0.00022739,2]
[363170280,1748607060508,-925.56,0.00022739,2]
[363170281,1748607060518,-1866.18,0.00022739,2]
[363170282,1748607060528,-859.59,0.00022739,2]
[363170283,1748607060537,-524.76,0.00022739,2]
[363170284,1748607060547,-420.0,0.00022739,2]
[363170285,1748607060557,-420.0,0.00022739,2]
[363170286,1748607060567,-7524.05,0.00022739,2]
[363170287,1748607060576,-420.0,0.00022739,2]
[363170288,1748607060586,-455.3,0.00022739,2]
[363170289,1748607060596,-448.17,0.00022739,2]
[363170290,1748607060605,-478.5,0.00022739,2]
[363170291,1748607060615,-1100.99,0.00022739,2]
[363170292,1748607060626,-6055.27,0.00022739,2]
[363170293,1748607060635,-420.0,0.00022739,2]
[363170294,1748607060645,-937.48,0.00022739,2]
[363170295,1748607060655,-564.55,0.00022739,2]
[363170296,1748607060669,-1109.15,0.00022739,2]
[363170297,1748607060680,-3354.03,0.00022739,2]
[363170298,1748607060691,-7876.53,0.00022739,2]
[363170299,1748607060700,-420.0,0.00022739,2]
[363170300,1748607060710,-428.1,0.00022739,2]
[363170301,1748607060720,-640.66,0.00022739,2]
[363170302,1748607060729,-732.75,0.00022739,2]
[363170303,1748607060740,-628.09,0.00022739,2]
[363170304,1748607060751,-802.35,0.00022739,2]
[363170305,1748607060761,-420.0,0.00022739,2]
[363170306,1748607060771,-4476.09,0.00022739,2]
[363170307,1748607060780,-420.0,0.00022739,2]
[363170308,1748607060790,-1010.4,0.00022739,2]
[363170309,1748607060799,-954.45,0.00022739,2]
[363170310,1748607060809,-830.92,0.00022739,2]
[363170311,1748607060818,-834.55,0.00022739,2]
[363170312,1748607060828,-1074.88,0.00022739,2]
[363170313,1748607060839,-533.45,0.00022739,2]
[363170314,1748607060849,-715.52,0.00022739,2]
[363170315,1748607060858,-659.25,0.00022739,2]
[363170316,1748607060868,-881.61,0.00022739,2]
[363170317,1748607060878,-420.0,0.00022739,2]
[363170318,1748607060888,-1646.34,0.00022739,2]
[363170319,1748607060898,-420.0,0.00022739,2]
[363170320,1748607060907,-5188.37,0.00022739,2]
[363170321,1748607060920,-420.0,0.00022739,2]
[363170322,1748607060930,-724.95,0.00022739,2]
[363170323,1748607060940,-4441.46,0.00022739,2]
[363170324,1748607060950,-1045.74,0.00022739,2]
[363170325,1748607060959,-420.0,0.00022739,2]
[363170326,1748607060969,-3401.09,0.00022739,2]
[363170327,1748607060978,-351.8625227,0.00022739,2]
[363170328,1748607060987,-1787.46,0.00022739,2]
[363170329,1748607060997,-821.68,0.00022739,2]
[363170330,1748607061007,-1393.87,0.00022739,2]
[363170331,1748607061018,-420.0,0.00022739,2]
[363170332,1748607061028,-631.21,0.00022739,2]
[363170333,1748607061038,-1135.27,0.00022739,2]
[363170334,1748607061048,-948.4,0.00022739,2]
[363170335,1748607061057,-620.79,0.00022739,2]
[363170336,1748607061067,-420.0,0.00022739,2]
[363170337,1748607061077,-874.48,0.00022739,2]
[363170338,1748607061087,-528.89,0.00022739,2]
[363170339,1748607061097,-420.0,0.00022739,2]
[363170340,1748607061106,-420.0,0.00022739,2]
[363170341,1748607061116,-303.69,0.0002274,2]
[363170342,1748607061125,-500.0,0.00022773,2]
[363170343,1748607061135,-500.0,0.00022773,2]
[363170344,1748607061145,-500.0,0.00022773,2]
[363170345,1748607061154,-186.34156,0.0002278,2]
[363170346,1748607061164,-9469.94,0.000228,7]
[363170347,1748607061178,-1122.45,0.000228,2]
[363170348,1748607061187,-237.44,0.000228,2]
[363170349,1748607061195,-1500.0,0.000228,8]
[363170350,1748607061204,-1900.0,0.000229,8]
[363170351,1748607061213,-431.73927023,0.00022913,2]
[363170352,1748607061221,-22510.63,0.00023012,2]
[363170353,1748607061230,-1383.96,0.00023012,2]
[363170354,1748607061238,-402.66,0.00023012,2]
[363170355,1748607061246,-1043.78,0.00023012,2]
[363170356,1748607061255,-5846.34,0.00023012,2]
[363170357,1748607061263,-881.68,0.00023012,2]
[363170358,1748607061272,-1371.68,0.00023012,2]
[363170359,1748607061281,-529.27,0.00023012,2]
[363170360,1748607061290,-14492.09,0.00023012,2]
[363170361,1748607061299,-593.61,0.00023012,2]
[363170362,1748607061308,-2219.46,0.00023012,2]
[363170363,1748607061317,-1480.09,0.00023012,2]
[363170364,1748607061325,-1225.13,0.00023012,2]
[363170365,1748607061335,-530.83,0.00023012,2]
[363170366,1748607061344,-480.91,0.00023013,2]
[363170367,1748607061352,-420.0,0.00023013,2]
[363170368,1748607061361,-420.0,0.00023013,2]
[363170369,1748607061371,-527.46,0.00023013,2]
[363170370,1748607061380,-420.0,0.00023013,2]
[363170371,1748607061389,-420.0,0.00023013,2]
[363170372,1748607061396,-420.0,0.00023013,2]
[363170373,1748607061402,-420.0,0.00023013,2]
[363170374,1748607061410,-424.96,0.00023013,2]
[363170375,1748607061421,-420.0,0.00023013,2]
[363170376,1748607061429,-420.0,0.00023013,2]
[363170377,1748607061437,-420.0,0.00023013,2]
[363170378,1748607061445,-718.13,0.00023013,2]
[363170379,1748607061452,-420.0,0.00023013,2]
[363170380,1748607061460,-420.0,0.00023013,2]
[363170381,1748607061467,-420.0,0.00023013,2]
[363170382,1748607061475,-420.0,0.00023013,2]
[363170383,1748607061483,-420.0,0.00023013,2]
[363170384,1748607061491,-866.18,0.00023013,2]
[363170385,1748607061498,-420.0,0.00023013,2]
[363170386,1748607061505,-420.0,0.00023013,2]
[363170387,1748607061512,-420.0,0.00023013,2]
[363170388,1748607061520,-542.03,0.00023013,2]
[363170389,1748607061529,-282.99,0.00023013,2]
[363170390,1748607061539,-420.0,0.00023013,2]
[363170391,1748607061548,-420.0,0.00023013,2]
[363170392,1748607061558,-541.7,0.00023013,2]
[363170393,1748607061567,-420.0,0.00023013,2]
[363170394,1748607061577,-420.0,0.00023013,2]
[363170395,1748607061587,-420.0,0.00023013,2]
[363170396,1748607061596,-741.67,0.00023013,2]
[363170397,1748607061605,-420.0,0.00023013,2]
[363170398,1748607061615,-420.0,0.00023013,2]
[363170399,1748607061625,-420.0,0.00023013,2]
[363170400,1748607061635,-1824.87,0.00023013,2]
[363170401,1748607061644,-420.0,0.00023013,2]
[363170402,1748607061656,-420.0,0.00023013,2]
[363170403,1748607061665,-607.61,0.00023013,2]
[363170404,1748607061679,-420.0,0.00023013,2]
[363170405,1748607061688,-420.0,0.00023013,2]
[363170406,1748607061699,-420.0,0.00023013,2]
[363170407,1748607061708,-420.0,0.00023013,2]
[363170408,1748607061718,-420.0,0.00023013,2]
[363170409,1748607061728,-420.0,0.00023013,2]
[363170410,1748607061738,-642.81,0.00023013,2]
[363170411,1748607061747,-420.0,0.00023013,2]
[363170412,1748607061826,-688.21,0.00023013,2]
[363170413,1748607061836,-468.61,0.00023013,2]
[363170414,1748607061845,-420.0,0.00023013,2]
[363170415,1748607061855,-420.0,0.00023013,2]
[363170416,1748607061864,-420.0,0.00023013,2]
[363170417,1748607061875,-681.76,0.00023013,2]
[363170418,1748607061884,-467.99,0.00023013,2]
[363170419,1748607061893,-420.0,0.00023013,2]
[363170420,1748607061903,-420.0,0.00023013,2]
[363170421,1748607061912,-570.81,0.00023013,2]
[363170422,1748607061924,-420.0,0.00023013,2]
[363170423,1748607061933,-848.07,0.00023013,2]
[363170424,1748607061942,-420.0,0.00023013,2]
[363170425,1748607061951,-492.25,0.00023013,2]
[363170426,1748607061960,-320.78369698,0.00023013,2]
[363170427,1748607061970,-554.15,0.00023013,2]
[363170428,1748607061979,-754.18,0.00023013,2]
[363170429,1748607061988,-420.0,0.00023013,2]
[363170430,1748607061998,-420.0,0.00023013,2]
[363170431,1748607062007,-420.0,0.00023013,2]
[363170432,1748607062017,-420.0,0.00023013,2]
[363170433,1748607062026,-420.0,0.00023013,2]
[363170434,1748607062036,-420.0,0.00023013,2]
[363170435,1748607062045,-488.67,0.00023013,2]
[363170436,1748607062054,-550.32,0.00023013,2]
[363170437,1748607062063,-420.0,0.00023013,2]
[363170438,1748607062073,-475.66,0.00023013,2]
[363170439,1748607062082,-1204.07,0.00023013,2]
[363170440,1748607062091,-420.0,0.00023013,2]
[363170441,1748607062100,-420.0,0.00023013,2]
[363170442,1748607062109,-983.71,0.00023013,2]
[363170443,1748607062118,-665.55,0.00023013,2]
[363170444,1748607062128,-420.0,0.00023013,2]
[363170445,1748607062140,-420.0,0.00023013,2]
[363170446,1748607062150,-420.0,0.00023013,2]
[363170447,1748607062161,-420.0,0.00023013,2]
[363170448,1748607062174,-430.7,0.00023013,2]
[363170449,1748607062183,-420.0,0.00023013,2]
[363170450,1748607062193,-420.0,0.00023013,2]
[363170451,1748607062202,-498.55179392,0.00023013,2]
[363170452,1748607062211,-420.0,0.00023013,2]
[363170453,1748607062220,-420.0,0.00023013,2]
[363170454,1748607062229,-420.0,0.00023013,2]
[363170455,1748607062239,-437.84,0.00023013,2]
[363170456,1748607062248,-594.66,0.00023013,2]
[363170457,1748607062257,-250.0,0.00023013,2]
[363170458,1748607062267,-878.74,0.00023013,2]
[363170459,1748607062276,-815.54,0.00023013,2]
[363170460,1748607062286,-395.48756011,0.00023013,2]
[363170461,1748607062296,-164.27756138,0.00023013,2]
[363170462,1748607062305,-420.0,0.00023013,2]
[363170463,1748607062315,-420.0,0.00023013,2]
[363170464,1748607062324,-420.0,0.00023013,2]
[363170465,1748607062334,-420.0,0.00023013,2]
[363170466,1748607062343,-420.0,0.00023013,2]
[363170467,1748607062352,-462.0,0.00023013,2]
[363170468,1748607062361,-420.0,0.00023013,2]
[363170469,1748607062370,-904.21,0.00023013,2]
[363170470,1748607062379,-420.0,0.00023013,2]
[363170471,1748607062388,-420.0,0.00023013,2]
[363170472,1748607062397,-420.0,0.00023013,2]
[363170473,1748607062405,-420.0,0.00023013,2]
[363170474,1748607062414,-476.26,0.00023013,2]
[363170475,1748607062426,-427.79,0.00023013,2]
[363170476,1748607062435,-460.54,0.00023013,2]
[363170477,1748607062446,-420.0,0.00023013,2]
[363170478,1748607062455,-420.0,0.00023013,2]
[363170479,1748607062464,-420.0,0.00023013,2]
[363170480,1748607062474,-420.0,0.00023013,2]
[363170481,1748607062483,-420.0,0.00023013,2]
[363170482,1748607062492,-420.0,0.00023013,2]
[363170483,1748607062501,-844.76,0.00023013,2]
[363170484,1748607062511,-1173.07,0.00023013,2]
[363170485,1748607062520,-420.0,0.00023013,2]
[363170486,1748607062529,-420.0,0.00023013,2]
[363170487,1748607062539,-795.92,0.00023013,2]
[363170488,1748607062548,-792.64,0.00023013,2]
[363170489,1748607062557,-435.55059774,0.00023013,2]
[363170490,1748607062567,-600.66,0.00023013,2]
[363170491,1748607062578,-420.0,0.00023013,2]
[363170492,1748607062589,-783.75,0.00023013,2]
[363170493,1748607062598,-420.0,0.00023013,2]
[363170494,1748607062608,-420.0,0.00023013,2]
[363170495,1748607062617,-431.78,0.00023013,2]
[363170496,1748607062627,-489.86,0.00023013,2]
[363170497,1748607062636,-420.0,0.00023013,2]
[363170498,1748607062646,-420.0,0.00023013,2]
[363170499,1748607062656,-1096.19,0.00023013,2]
[363170500,1748607062669,-420.0,0.00023013,2]
[363170501,1748607062679,-420.0,0.00023013,2]
[363170502,1748607062688,-505.65,0.00023013,2]
[363170503,1748607062697,-899.73,0.00023013,2]
[363170504,1748607062707,-420.0,0.00023013,2]